[Event "ZMDI Open 2018"]
[Site "Dresden"]
[Date "2018.08.11"]
[Round "8.5"]
[White "Carow, Johannes"]
[Black "Kovchan, Alexander"]
[Result "0-1"]
[ECO "E46"]
[WhiteElo "2445"]
[BlackElo "2566"]
[Annotator "ChessBase"]
[PlyCount "150"]
[EventDate "2018.08.04"]
[EventType "swiss"]
[EventCountry "GER"]
[SourceTitle "playchess.com"]
[Source "ChessBase"]
[SourceQuality "1"]
[TimeControl "40/5400+30:1800+30"]

1. d4 {[%emt 1:30:26]} Nf6 {[%emt 1:30:21]} 2. c4 {[%emt 1:30:48]} e6 {[%emt 1:30:45]} 3. Nc3 {[%emt 1:31:10]} Bb4 {[%emt 1:31:06]} 4. e3 {[%emt 1:31:21]} O-O 5. Nge2 {[%emt 1:30:56]} Re8 {[%emt 1:31:10]} 6. a3 {[%emt 1:31:03]} Bf8 {[%emt 1:31:31]} 7. d5 {[%emt 1:30:29]} a5 {[%emt 1:30:48]} 8. g3 {[%emt 1:30:05]} Na6 {[%emt 1:29:50]} 9. Bg2 {[%emt 1:25:54]} Nc5 {[%emt 1:29:56]} 10. O-O {[%emt 1:24:34]} exd5 {[%emt 1:21:46]} 11. cxd5 {[%emt 1:22:20]} a4 {[%emt 1:22:07]} 12. Nd4 {[%emt 1:19:45]} b6 {[%emt 1:18:30]} 13. Qc2 {[%emt 1:19:10]} Ba6 {[%emt 1:13:34]} 14. Rd1 {[%emt 1:19:06]} Bc4 {[%emt 1:13:19]} 15. e4 {[%emt 0:56:18]} Ra5 {[%emt 1:00:03]} 16. Bf4 {[%emt 0:48:43]} Ng4 {[%emt 0:57:45]} 17. h3 {[%emt 0:40:43]} Ne5 {[%emt 0:57:54]} 18. Bxe5 {[%emt 0:34:46]} Rxe5 {[%emt 0:57:43]} 19. Bf1 {[%emt 0:35:02]} Bb3 {[%emt 0:52:31]} 20. Nxb3 {[%emt 0:35:20]} axb3 {[%emt 0:52:39]} 21. Qb1 {[%emt 0:34:31]} Re8 {[%emt 0:49:40]} 22. Re1 {[%emt 0:28:36]} g6 {[%emt 0:49:12]} 23. Qd1 {[%emt 0:28:10]} Bg7 {[%emt 0:49:20]} 24. Rc1 {[%emt 0:28:04]} Qf6 {[%emt 0:39:54]} 25. Bc4 {[%emt 0:27:38]} Qd4 {[%emt 0:39:47]} 26. Qe2 {[%emt 0:27:13]} d6 {[%emt 0:35:13]} 27. Rcd1 {[%emt 0:21:39]} Qf6 {[%emt 0:35:11]} 28. Rc1 {[%emt 0:12:17]} Raa8 {[%emt 0:32:30]} 29. Kg2 {[%emt 0:12:06]} g5 {[%emt 0:29:45]} 30. Qd1 {[%emt 0:09:56]} Qe5 {[%emt 0:23:01]} 31. Bxb3 {[%emt 0:08:59]} f5 {[%emt 0:23:29]} 32. Ba4 {[%emt 0:08:25]} Nxa4 {[%emt 0:19:12]} 33. Nxa4 {[%emt 0:08:46]} f4 {[%emt 0:08:36]} 34. Rxc7 {[%emt 0:06:52]} Rf8 {[%emt 0:09:04]} 35. Nc3 {[%emt 0:05:17]} Rf6 {[%emt 0:06:35]} 36. Qg4 {[%emt 0:04:02]} fxg3 {[%emt 0:07:03]} 37. Qxg3 {[%emt 0:02:57]} Rf4 {[%emt 0:07:19]} 38. f3 {[%emt 0:02:15]} Raf8 {[%emt 0:07:35]} 39. Rf1 {[%emt 0:01:58]} h5 {[%emt 0:08:04]} 40. Ne2 {[%emt 0:00:12]} h4 {[%emt 0:04:11]} 41. Qe1 {[%emt 0:23:52]} Qxb2 {[%emt 0:32:34]} 42. Rf2 {[%emt 0:20:41]} R4f7 {[%emt 0:32:12]} 43. Rxf7 {[%emt 0:18:11]} Rxf7 {[%emt 0:32:40]} 44. Nf4 {[%emt 0:17:32]} Qxa3 {[%emt 0:30:53]} 45. Ne6 {[%emt 0:15:17]} g4 {[%emt 0:27:14]} 46. hxg4 {[%emt 0:14:26]} h3+ {[%emt 0:27:30]} 47. Kxh3 {[%emt 0:14:30]} Rxf3+ {[%emt 0:27:51]} 48. Rxf3 {[%emt 0:14:45]} Qxf3+ {[%emt 0:28:18]} 49. Kh4 {[%emt 0:12:28]} Bf6+ {[%emt 0:23:13]} 50. g5 {[%emt 0:09:53]} Be5 {[%emt 0:20:49]} 51. Qg1 {[%emt 0:08:32]} b5 {[%emt 0:19:43]} 52. Qg4 {[%emt 0:07:36]} Qh1+ {[%emt 0:18:08]} 53. Qh3 {[%emt 0:08:05]} Qxe4+ {[%emt 0:17:44]} 54. Qg4 {[%emt 0:07:09]} Qe1+ {[%emt 0:14:52]} 55. Kh5 {[%emt 0:07:34]} Qh1+ {[%emt 0:15:16]} 56. Qh4 {[%emt 0:08:01]} Qxd5 {[%emt 0:15:33]} 57. Qh3 {[%emt 0:06:55]} Qe4 {[%emt 0:12:31]} 58. Qf1 {[%emt 0:03:45]} Qh7+ {[%emt 0:10:03]} 59. Kg4 {[%emt 0:04:14]} Qf7 {[%emt 0:09:58]} 60. Qxf7+ {[%emt 0:02:48]} Kxf7 {[%emt 0:10:26]} 61. Kf5 {[%emt 0:03:09]} b4 {[%emt 0:09:56]} 62. Nc7 {[%emt 0:02:31]} b3 {[%emt 0:08:46]} 63. Nb5 {[%emt 0:02:51]} Ke7 {[%emt 0:08:44]} 64. Ke4 {[%emt 0:01:16]} Ke6 {[%emt 0:08:48]} 65. Kd3 {[%emt 0:00:09]} Kd5 {[%emt 0:07:47]} 66. Na3 {[%emt 0:00:19]} Kc5 {[%emt 0:07:53]} 67. Nc4 {[%emt 0:00:48]} Bg7 {[%emt 0:05:08]} 68. Nd2 {[%emt 0:00:56]} Kb4 {[%emt 0:05:30]} 69. Ke4 {[%emt 0:00:58]} b2 {[%emt 0:05:25]} 70. Kd3 {[%emt 0:01:02]} Ka3 {[%emt 0:04:00]} 71. Kc4 {[%emt 0:00:03]} Ka2 {[%emt 0:03:50]} 72. g6 {[%emt 0:00:19]} Bh6 {[%emt 0:03:49]} 73. Ne4 {[%emt 0:00:31]} Ka1 {[%emt 0:03:57]} 74. Nd2 {[%emt 0:00:02]} Bxd2 {[%emt 0:04:11]} 75. g7 {[%emt 0:00:30]} b1=Q {[%emt 0:04:14]} 0-1

[Event "ZMDI Open 2018"]
[Site "Dresden"]
[Date "2018.08.11"]
[Round "8.6"]
[White "Vorobiov, Evgeny E"]
[Black "Kaasen, Tor Fredrik"]
[Result "1-0"]
[ECO "E90"]
[WhiteElo "2558"]
[BlackElo "2377"]
[Annotator "RC"]
[PlyCount "73"]
[EventDate "2018.08.04"]
[EventType "swiss"]
[EventCountry "GER"]
[SourceTitle "playchess.com"]
[Source "ChessBase"]
[SourceQuality "1"]
[TimeControl "40/5400+30:1800+30"]

1. d4 {[%emt 1:30:28]} Nf6 {[%emt 1:25:58]} 2. c4 {[%emt 1:30:55]} c5 {[%emt 1:26:21]} 3. d5 {[%emt 1:30:48]} g6 {[%emt 1:26:26]} 4. Nc3 {[%emt 1:30:49]} Bg7 {[%emt 1:26:41]} 5. e4 {[%emt 1:29:01]} d6 {[%emt 1:26:44]} 6. Bd3 {[%emt 1:28:52]} O-O {[%emt 1:26:42]} 7. h3 {[%emt 1:29:17]} e6 {[%emt 1:26:45]} 8. Nf3 {[%emt 1:29:42]} Na6 {[%emt 1:26:54]} 9. O-O {[%emt 1:28:46]} Nc7 {[%emt 1:24:25]} 10. Re1 {[%emt 1:25:32]} Re8 {[%emt 1:23:52]} 11. Bf1 {[%emt 1:02:51]} e5 {[%emt 1:15:25]} 12. a3 {[%emt 0:56:58]} Na6 {[%emt 1:12:21]} 13. Bg5 {[%emt 0:51:35]} h6 {[%emt 1:10:41]} 14. Be3 {[%emt 0:51:44]} Nh5 {[%emt 1:09:29]} 15. Qd2 {[%emt 0:50:47]} g5 {[%emt 1:06:43]} 16. Kh2 {[%emt 0:44:10]} Qf6 {[%emt 1:05:34]} 17. Ng1 {[%emt 0:43:51]} Kh7 {[%emt 1:01:58]} 18. Nge2 {[%emt 0:38:22]} Qg6 {[%emt 0:59:12]} 19. Ng3 {[%emt 0:38:26]} Nf4 {[%emt 0:57:49]} 20. Qc2 {[%emt 0:37:35]} g4 {[%emt 0:50:58]} 21. Nf5 {[%emt 0:34:58]} Bf6 {[%emt 0:41:17]} 22. g3 {[%emt 0:28:18]} Nxh3 {[%emt 0:33:12]} 23. Bxh3 {[%emt 0:27:32]} Qh5 {[%emt 0:31:14]} 24. Rh1 {[%emt 0:27:33]} gxh3 {[%emt 0:28:04]} 25. g4 {[%emt 0:17:25]} Qxg4 {[%emt 0:26:05]} 26. Rag1 {[%emt 0:17:50]} Qh5 {[%emt 0:24:08]} 27. Rg3 {[%emt 0:17:33]} Bh4 {[%emt 0:18:30]} 28. Rxh3 {[%emt 0:16:51]} Bxf5 {[%emt 0:18:15]} 29. exf5 {[%emt 0:17:17]} f6 {[%emt 0:06:03]} 30. Ne4 {[%emt 0:15:23]} Rf8 {[%emt 0:06:25]} 31. Kg2 {[%emt 0:10:16]} Qxf5 {[%emt 0:05:21]} 32. Rxh4 {[%emt 0:09:50]} Rg8+ {[%emt 0:05:32]} 33. Kf1 {[%emt 0:10:08]} Rg6 {[%emt 0:05:50]} 34. Nxf6+ {[%emt 0:07:21]} Qxf6 {[%emt 0:05:12]} 35. Rxh6+ {[%emt 0:07:28]} Kg7 {[%emt 0:05:38]} 36. Rxg6+ {[%emt 0:07:09]} Qxg6 {[%emt 0:06:02]} 37. Rg1 {[%emt 0:07:32]} 1-0

[Event "ZMDI Open 2018"]
[Site "Dresden"]
[Date "2018.08.12"]
[Round "9.6"]
[White "Jakob, Pfreundt"]
[Black "Dann, Matthias"]
[Result "0-1"]
[ECO "A49"]
[WhiteElo "2399"]
[BlackElo "2534"]
[Annotator "ChessBase"]
[PlyCount "82"]
[EventDate "2018.08.04"]
[EventType "swiss"]
[EventCountry "GER"]
[SourceTitle "playchess.com"]
[Source "ChessBase"]
[SourceQuality "1"]
[TimeControl "40/5400+30:1800+30"]

1. d4 Nf6 {[%emt 1:30:04]} 2. Nf3 {[%emt 1:29:56]} g6 {[%emt 1:30:28]} 3. g3 {[%emt 1:30:02]} Bg7 {[%emt 1:30:22]} 4. Bg2 {[%emt 1:29:38]} O-O {[%emt 1:29:53]} 5. O-O {[%emt 1:29:45]} d6 {[%emt 1:28:32]} 6. Nc3 {[%emt 1:29:15]} d5 {[%emt 1:25:13]} 7. Re1 {[%emt 1:29:27]} c6 {[%emt 1:24:29]} 8. e4 {[%emt 1:25:16]} dxe4 {[%emt 1:24:45]} 9. Nxe4 {[%emt 1:25:30]} Nbd7 {[%emt 1:09:31]} 10. Nxf6+ {[%emt 1:19:40]} Nxf6 {[%emt 1:08:55]} 11. c3 {[%emt 1:19:17]} a5 {[%emt 1:02:11]} 12. a4 {[%emt 1:12:46]} Nd5 {[%emt 1:00:20]} 13. Qe2 {[%emt 1:05:54]} Bg4 {[%emt 0:57:42]} 14. h3 {[%emt 1:04:25]} Bxf3 {[%emt 0:58:09]} 15. Bxf3 {[%emt 1:04:34]} e6 {[%emt 0:58:36]} 16. Ra3 {[%emt 0:59:51]} Qd7 {[%emt 0:56:45]} 17. h4 {[%emt 0:47:26]} h5 {[%emt 0:57:06]} 18. Bg5 {[%emt 0:47:16]} Rfe8 {[%emt 0:56:21]} 19. Qd3 {[%emt 0:46:23]} Bf8 {[%emt 0:49:49]} 20. Raa1 {[%emt 0:45:19]} b5 {[%emt 0:44:51]} 21. Ra2 {[%emt 0:41:54]} Bg7 {[%emt 0:40:08]} 22. Rea1 {[%emt 0:28:49]} b4 {[%emt 0:39:18]} 23. Rd1 {[%emt 0:28:41]} bxc3 {[%emt 0:37:59]} 24. bxc3 {[%emt 0:29:00]} Rab8 {[%emt 0:37:38]} 25. Bd2 {[%emt 0:26:23]} Rb3 {[%emt 0:36:39]} 26. Qc4 {[%emt 0:24:58]} Qb7 {[%emt 0:34:09]} 27. Be4 {[%emt 0:19:48]} Rc8 {[%emt 0:34:02]} 28. Bc2 {[%emt 0:17:16]} Rb6 {[%emt 0:30:27]} 29. Raa1 {[%emt 0:14:23]} c5 {[%emt 0:29:36]} 30. dxc5 {[%emt 0:13:45]} Rbc6 {[%emt 0:27:17]} 31. Rab1 {[%emt 0:04:18]} Qa7 {[%emt 0:27:43]} 32. Rb5 {[%emt 0:02:06]} Rxc5 {[%emt 0:28:08]} 33. Rxc5 {[%emt 0:02:16]} Rxc5 {[%emt 0:27:51]} 34. Qe2 {[%emt 0:01:51]} Bxc3 {[%emt 0:27:13]} 35. Be3 {[%emt 0:01:59]} Nxe3 {[%emt 0:26:43]} 36. Rd8+ {[%emt 0:00:14]} Kg7 {[%emt 0:26:44]} 37. Qxe3 {[%emt 0:00:41]} Qe7 {[%emt 0:20:43]} 38. Qd3 {[%emt 0:00:26]} Rc7 {[%emt 0:21:08]} 39. Bd1 {[%emt 0:00:08]} e5 {[%emt 0:03:30]} 40. Bf3 {[%emt 0:00:06]} Bd4 {[%emt 0:02:52]} 41. Rb8 {[%emt 0:26:54]} Qc5 {[%emt 0:27:52]} 0-1